Workbook

Sheet LM5088 Calculator
A1: LM(2)5088-1/2 Quick Start Component Calculator | D1: Date:1 Dec 2008 | F1: Ajay Hari | G1: Version 1.1
A7: Step 1 General Requirements
A8: Enter Design parameters in the shaded | B8: Vin(min)(V) | C8: =48-0.48 -> 47.52 | AJ8: Controller Selection
A9: Cells | B9: Vin(max)(V) | C9: =48+0.48 -> 48.48 | AJ9: Dither
B10: Vout(V) | C10: 24 | AJ10: Restart
B11: Max. Load Current (A) | C11: 10
B12: Ripple Current % of Max. Load Current | C12: 0.12 | AJ12: Yes
B13: Peak-Peak output voltage ripple(mV) | C13: 100 | AJ13: No
B14: Max. output volts deviation(mV) | C14: 300
A15: Step 2 Controller Selection | B15: =IF(Vin_min<Vout,"It is a Buck converter","") -> 
B16: Select the Controller Version | C16: Dither
B17: Recommended Device | C17: =IF(ControllerSelect="Restart", (IF(Vin_max>42,"LM5088-2","LM25088-2")),(IF(Vin_max>42,"LM5088-1","LM25088-1"))) -> LM5088-1
A19: Step 3 Switching Frequency | B19: Fsw(kHz) | C19: 300
A20: =IF(Fsw>MIN(Fswmax,Fswmin),"Part will enter into low dropout mode at VinMin, Decrease Fsw or, Change Vin/Vout range"," ") -> 
A21: Step 4 Frequency Programming | B21: RRT(kΩ) | C21: =((0.001/Fsw)-280*0.000000001)/(152*0.000000001) -> 20.0877193
A23: Step 5 Inductor Value | B23: L(μH) | C23: =(Vout/(I_load_ripple*Max_Ave_Iload*Fsw*10000))*(1-(Vout/Vin_max))*10000000 -> 33.66336634
A25: Step 6 Current Limit | B25: Target(% Beyond Max. Load) | C25: 0.19
B26: Peak Load Current at Current Limit (A) | C26: =(1+ILoad_margin)*Max_Ave_Iload*(1+(I_load_ripple/2)) -> 12.614
B27: Current Sense Resistor (Rs)(mΩ) | C27: =0.12/(Ipk_load+(Vout/(L*Fsw*0.001)))*1000 -> 8.005085584
A29: Step 7 Ramp Configuration | B29: CRamp(pF) | C29: =5*100*L/Rs -> 2102.623762
B30: =IF(C30=""," ","Rramp(kΩ)") -> Rramp(kΩ) | C30: =IF(Vout>5, (VCC-Vramp)*1000/(Ios-25), "NA") -> 78.10024201
A32: Step 8 Output Capacitors | B32: COUT1(uF) | C32: =(L*((Max_Ave_Iload+(I_load_ripple*Max_Ave_Iload/2))^2))/(((Op_Deviation/1000)+Vout)^2-Vout^2) -> 261.03629 | E32: LM5088 List of Components
B33: COUT2(uF) | C33: 47 | E33: Component | F33: Description | G33: Value | H33: Rating
B34: Max. Allowable ESR(mΩ) | C34: =DeltaVout/(I_load_ripple*Max_Ave_Iload) -> 83.33333333 | E34: Cin | F34: Input capacitor | G34: 5.366666667 | H34: =Vin_max*1.3 -> 63.024
B35: COUT_TOTAL (uF) | C35: =Cout1+Cout2 -> 308.03629 | E35: CRamp | F35: Ramp capacitor | G35: =Cramp -> 2102.623762 | H35: 5 V
E36: Css | F36: Soft start capacitor | G36: =Css -> 0.01666666667 | H36: 5 V
A37: Step 9 Input Capacitors | B37: Input Capacitor Cin(uF) | C37: =Max_Ave_Iload/2/Fsw*1000 -> 16.66666667 | E37: COUT1 | F37: Output capacitor | G37: =Cout1 -> 261.03629 | H37: =Vout*1.1 -> 26.4
E38: COUT2 | F38: Output capacitor | G38: =Cout2 -> 47 | H38: =Vout*1.1 -> 26.4
A39: Step 10 VIN UV Shutdown | B39: Select "Yes" or "No" | C39: No | E39: CCOMP | F39: Compensation capacitor | G39: =Ccomp -> 387.3618372 | H39: =Vout*1.1 -> 26.4
B40: =IF(C39="YES","UV Voltage (V)","") ->  | C40: NA | E40: CHF | F40: Compensation capacitor | G40: =Chf -> 3.873618372 | H40: =Vout*1.1 -> 26.4
B41: =IF(C39="YES","Ruv2(kΩ)","") ->  | C41: NA | E41: CVCC | F41: VCC bypass capacitor | G41: =CVCC -> 0.6493506494 | H41: 16V
B42: =IF(C39="YES","Ruv1(kΩ)","") ->  | C42: NA | E42: CBOOT | F42: Highside Bootstrap capacitor | G42: =Cboot -> 64.93506494 | H42: 16V
E43: CDITHER (LM(2)5088-1) | F43: Dither Capacitor | G43: =Cdither -> 0.06944444444 | H43: =IF(OR(Controller="LM5088-1",Controller="LM25088-1"),"5V","NA") -> 5V
A44: Step 11 Feedback Resistors | B44: RFB1 (kΩ) | C44: 1.839 | E44: CRESTART(LM(2)5088-2) | F44: Hiccup Restart | G44: =Crestart -> NA | H44: =IF(OR(Controller="LM5088-2",Controller="LM25088-2"),"5V","NA") -> NA
B45: RFB2 (kΩ) | C45: =_Rfb1*((Vout/1.205)-1) -> 34.78838589 | E45: RFB1 | F45: Feedback resistor | G45: =_Rfb1 -> 1.839 | H45: =IF((Vref*Vref/(_Rfb1*1000))<0.0625,"1/16 W","1/8 W") -> 1/16 W
E46: RFB2 | F46: Feedback resistor | G46: =_Rfb2 -> 34.78838589 | H46: =IF((_Rfb2*(1/1000)*(Vref/_Rfb1)^2)<0.0625,"1/16 W","1/8 W") -> 1/16 W
A47: Step 12 Compensation Network | B47: Bandwidth (kHz) | C47: 30 | E47: RUV1 | F47: UVLO divider resistor | G47: =IF(UV_Selector="Yes", _Ruv1, "-") -> - | H47: =IF(UV_Selector="YES",(IF((Vin_max*_Ruv1/(_Ruv2+_Ruv1))^2/(_Ruv1*1000)>0.0625,"1/8W","1/16W")),"-") -> -
B48: RCOMP(kΩ) | C48: =(_Rfb2*6.28*Fbw*Cout1)*(10*Rs*0.000001) -> 136.9563096 | E48: RUV2 | F48: UVLO divider resistor | G48: =IF(UV_Selector="Yes",_Ruv2, "-") -> - | H48: =IF(UV_Selector="YES",(IF((Vin_max*_Ruv2/(_Ruv2+_Ruv1))^2/(_Ruv2*1000)>0.0625,"1/8W","1/16W")),"-") -> -
B49: CCOMP(pF) | C49: =10*1000000/(2*PI()*Fbw*Rcomp) -> 387.3618372 | E49: Rs | F49: Sense Resistor | G49: =Rs -> 8.005085584 | H49: =IF(Iload*Iload*Rs*0.001<0.25, "1/4 W", IF(Iload*Iload*Rs*0.001<0.5, "1/2 W", IF(Iload*Iload*Rs*0.001<1,"1 W"))) -> 1/4 W
B50: CHF(pF) | C50: =IF(Chf<47,"47",Chf) -> 47 | E50: RRT | F50: Oscillator Timing resistor | G50: =RT -> 20.0877193 | H50: =IF((Vref*Vref/RT)<0.0625,"1/16 W","1/8 W") -> 1/8 W
E51: L | F51: Inductor | G51: =L -> 33.66336634 | H51: =Ipk_load*1.1 -> 13.8754
A52: Step 13 Soft Start Capacitor | B52: Soft-Start Time (ms) | C52: 2 | E52: RRamp | F52: Optional Ramp resistor | G52: =IF(Vout>5, (VCC-Vramp)*1000/(Ios-25), "NA") -> 78.10024201 | H52: =IF(G52="-","-","1/16 W") -> 1/16 W
B53: Soft-Start Capacitor Css (uF) | C53: =(10*tss*0.001)/1.2 -> 0.01666666667 | E53: RCOMP | F53: Compensation resistor | G53: =Rcomp -> 136.9563096 | H53: 1/8 W
E54: D | F54: Schottky Diode | G54: Voltage Rating | H54: =1.1*Vin_max -> 53.328
A55: Step 14 CBOOT & VCC Capacitor | B55: FET total gate charge QT (nano Coulombs) | C55: 20 | E55: Q | F55: MOSFET | G55: Voltage Rating | H55: =1.1*Vin_max -> 53.328
B56: CBOOT(nF) | C56: =Qg/(0.04*7.7) -> 64.93506494
B57: CVCC(uF) | C57: =IF(CVCC<0.1,"0.1",CVCC) -> 0.6493506494
A59: Step 15 Dither Capacitor(LM(2)5088-1) | B59: =IF(OR(Controller="LM5088-1",Controller="LM25088-1"),"Cdither(uF)","NA") -> Cdither(uF) | C59: =IF(ControllerSelect="Dither",(2500/(Fsw*1000*0.12)),"NA") -> 0.06944444444
A61: Step 16 Restart Capacitor(LM(2)5088-2) | B61: =IF(OR(Controller="LM5088-2",Controller="LM25088-2"),"Allowable current limit overload time (ms)","NA") -> NA | C61: NA
B62: =IF(OR(Controller="LM5088-2",Controller="LM25088-2"),"Hiccup Sleep Time (ms)","NA") -> NA | C62: =IF(ControllerSelect="Restart",(Crestart*1000)/(1.2*1),"NA") -> NA
B63: =IF(OR(Controller="LM5088-2",Controller="LM25088-2"),"Cres(uF)","NA") -> NA | C63: =IF(ControllerSelect="Restart",(50*n)/(1.2*1000),"NA") -> NA

Sheet Power Dissipation
A6: Assumptions
A7: Ambient Temperature | B7: 85
A8: Package RJA | B8: 40
A11: VIN | B11: =Vin_min -> 47.52 | C11: =Vin_min+(Vin_max-Vin_min)/10 -> 47.616 | D11: =Vin_min+2*(Vin_max-Vin_min)/10 -> 47.712 | E11: =Vin_min+3*(Vin_max-Vin_min)/10 -> 47.808 | F11: =Vin_min+4*(Vin_max-Vin_min)/10 -> 47.904 | G11: =Vin_min+5*(Vin_max-Vin_min)/10 -> 48 | H11: =Vin_min+6*(Vin_max-Vin_min)/10 -> 48.096 | I11: =Vin_min+7*(Vin_max-Vin_min)/10 -> 48.192 | J11: =Vin_min+8*(Vin_max-Vin_min)/10 -> 48.288 | K11: =Vin_min+9*(Vin_max-Vin_min)/10 -> 48.384 | L11: =Vin_min+10*(Vin_max-Vin_min)/10 -> 48.48
A12: IC Power | B12: =B11*(7*0.001+Qg*Fsw*0.000001) -> 0.61776 | C12: 0.619008 | D12: 0.620256 | E12: 0.621504 | F12: 0.622752 | G12: 0.624 | H12: 0.625248 | I12: 0.626496 | J12: 0.627744 | K12: 0.628992 | L12: 0.63024
A13: Delta TJ above TA | B13: =B12*RJA -> 24.7104 | C13: 24.76032 | D13: 24.81024 | E13: 24.86016 | F13: 24.91008 | G13: 24.96 | H13: 25.00992 | I13: 25.05984 | J13: 25.10976 | K13: 25.15968 | L13: 25.2096
A14: Junction temperature | B14: =TA+B12*RJA -> 109.7104 | C14: 109.76032 | D14: 109.81024 | E14: 109.86016 | F14: 109.91008 | G14: 109.96 | H14: 110.00992 | I14: 110.05984 | J14: 110.10976 | K14: 110.15968 | L14: 110.2096

Sheet Bode Plots
C1: Frequency (Hz) | D1: Frequency (rad/sec) | E1: Modulator Gain (dB) | F1: Modulator Phase (deg) | G1: Error Amplifier Gain (dB) | H1: Error Amplifier Phase (deg) | I1: Overall Loop Gain (dB) | J1: Loop Phase (deg)
C2: 0.1 | D2: =2*PI()*C2 -> 0.6283185307 | E2: =20*LOG( DC_GAIN_MOD/SQRT( (D2*Rload*Cout1*0.000001)^2 + 1)) -> 29.53690457 | F2: =-ATAN(D2*Rload*Cout1*0.000001)*(180/PI()) -> -0.02255353429 | G2: =20*LOG(SQRT((D2*Rcomp*Ccomp*0.000000001)^2+1)) - 20*LOG((_Rfb2*Ccomp*0.000000001*D2))-20*LOG(SQRT((Rcomp*Chf*0.000000001*D2)^2+1)) -> 101.4453804 | H2: =ATAN(D2*Rcomp*Ccomp*0.000000001)*180/PI() -90 - ATAN(D2*Rcomp*Chf*0.000000001)*180/PI() -> -89.99810924 | I2: =E2+G2 -> 130.982285 | J2: =F2+H2+180 -> 89.97933723
C3: 0.2 | D3: =2*PI()*C3 -> 1.256637061 | E3: 29.53690255 | F3: -0.04510706159 | G3: 95.42478052 | H3: -89.99621848 | I3: =E3+G3 -> 124.9616831 | J3: =F3+H3+180 -> 89.95867446
C4: 0.5 | D4: 3.141592654 | E4: 29.53688842 | F4: -0.1127675317 | G4: 87.46598045 | H4: -89.9905462 | I4: 117.0028689 | J4: 89.89668627
C5: 1 | D5: 6.283185307 | E5: 29.53683795 | F5: -0.2255341897 | G5: 81.4453809 | H5: -89.98109239 | I5: 110.9822189 | J5: 89.79337342 | R5: Additional Definitions
C6: 2 | D6: 12.56637061 | E6: 29.53663608 | F6: -0.4510613904 | G6: 75.42478243 | H6: -89.96218479 | I6: 104.9614185 | J6: 89.58675382 | T6: UVLO Selector
C7: 5 | D7: 31.41592654 | E7: 29.53522325 | F7: -1.127531198 | G7: 67.46599239 | H7: -89.90546205 | I7: 97.00121565 | J7: 88.96700675 | R7: RLOAD | S7: =Vout/Max_Ave_Iload -> 2.4 | T7: Yes
C8: 10 | D8: 62.83185307 | E8: 29.53018118 | F8: -2.254189757 | G8: 61.44542867 | H8: -89.81092463 | I8: 90.97560985 | J8: 87.93488561 | R8: DC GAIN MOD | S8: =Rload/(10*Rs*0.001) -> 29.98094118 | T8: No
C9: 20 | D9: 125.6637061 | E9: 29.51007122 | F9: -4.501422635 | G9: 55.4249735 | H9: -89.62185351 | I9: 84.93504472 | J9: 85.87672385 | R9: VCC | S9: 7.7
C10: 50 | D10: 314.1592654 | E10: 29.37184997 | F10: -11.13445235 | G10: 47.46718642 | H10: -89.05470804 | I10: 76.83903639 | J10: 79.8108396
C11: 100 | D11: 628.3185307 | E11: 28.91128359 | F11: -21.48625841 | G11: 41.45020275 | H11: -88.10994616 | I11: 70.36148634 | J11: 70.40379543
C12: 200 | D12: 1256.637061 | E12: 27.44232032 | F12: -38.2121878 | G12: 35.44403778 | H12: -86.22412235 | I12: 62.8863581 | J12: 55.56368985
C13: 500 | D13: 3141.592654 | E13: 22.65833304 | F13: -63.06547295 | G13: 27.5849605 | H13: -80.63317067 | I13: 50.24329354 | J13: 36.30135638
C14: 1000 | D14: 6283.185307 | E14: 17.36345329 | F14: -75.74592003 | G14: 21.90290707 | H14: -71.7560364 | I14: 39.26636036 | J14: 32.49804357
C15: 2000 | D15: 12566.37061 | E15: 11.54495332 | F15: -82.76095797 | G15: 17.02159592 | H15: -56.69189868 | I15: 28.56654923 | J15: 40.54714335
C16: 5000 | D16: 31415.92654 | E16: 3.644468226 | F16: -87.09137767 | G16: 13.2371382 | H16: -31.91859779 | I16: 16.88160643 | J16: 60.99002454
C17: 10000 | D17: 62831.85307 | E17: -2.36773667 | F17: -88.54475126 | G17: 12.27239749 | H17: -18.60839667 | I17: 9.904660817 | J17: 72.84685207
C18: 20000 | D18: 125663.7061 | E18: -8.386235292 | F18: -89.27225826 | G18: 11.98032928 | H18: -12.34484044 | I18: 3.594093988 | J18: 78.38290129
C19: 50000 | D19: 314159.2654 | E19: -16.34444692 | F19: -89.70889016 | G19: 11.79956962 | H19: -12.89595257 | I19: -4.544877304 | J19: 77.39515727
C20: 100000 | D20: 628318.5307 | E20: -22.36496275 | F20: -89.85444414 | G20: 11.44928731 | H20: -20.15330682 | I20: -10.91567544 | J20: 69.99224904
C21: 200000 | D21: 1256637.061 | E21: -28.38554164 | F21: -89.92722195 | G21: 10.30692395 | H21: -34.54943977 | I21: -18.07861769 | J21: 55.52333828
C22: 500000 | D22: 3141592.654 | E22: -36.34433593 | F22: -89.97088877 | G22: 6.130747591 | H22: -59.38001402 | I22: -30.21358834 | J22: 30.64909721
C23: 1000000 | D23: 6283185.307 | E23: -42.364935 | F23: -89.98544438 | G23: 1.071154525 | H23: -73.47264259 | I23: -41.29378048 | J23: 16.54191303
U30: =(Vout/Vin_max)/(120*0.000000001*1000) -> 4125.412541
U31: =(1-(Vout/Vin_min))/(0.00000055*1000) -> 899.9081726
